bitfinex-derivatives/quotes_SOLF0:USTF0_20240927
["timestamp","ask_amount","ask_price","bid_price","bid_amount"]
[1727449096461,67.48,160.18,160.1,14.98]
[1727449096867,67.48,160.18,160.16,3.1204]
[1727449097062,67.48,160.18,160.11,5.0867]
[1727449097761,106.8682839,160.25,160.15,14.98]
[1727449097959,110.02885822,160.25,160.15,14.98]
[1727449098160,110.02885822,160.25,160.18,3.12]
[1727449098368,14.98,160.23,160.15,14.98]
[1727449098663,14.98,160.23,160.18,3.12]
[1727449099370,14.98,160.23,160.17,3.1201]
[1727449100069,14.98,160.23,160.15,14.98]
[1727449100274,14.98,160.21,160.13,14.98]
[1727449100667,14.98,160.21,160.11,5.0867]
[1727449101272,14.98,160.21,160.14,3.1207]
[1727449101467,14.98,160.21,160.12,14.98]
[1727449101868,14.98,160.21,160.15,3.1205]
[1727449102071,14.98,160.23,160.12,14.98]
[1727449102270,67.46,160.24,160.15,14.98]
[1727449102574,67.46,160.24,160.17,3.1201]
[1727449103972,67.46,160.24,160.18,3.1198]
[1727449104174,67.46,160.24,160.17,14.98]
[1727449104970,67.46,160.24,160.15,14.98]
[1727449105773,14.98,160.23,160.13,14.98]
[1727449106077,14.98,160.21,160.13,14.98]
[1727449106271,14.98,160.19,160.11,5.0867]
[1727449106580,14.98,160.19,160.13,3.1209]
[1727449106874,14.98,160.19,160.14,3.1207]
[1727449107071,14.98,160.19,160.11,5.0867]
[1727449107477,14.98,160.17,160.11,5.6593]
[1727449107674,14.98,160.17,160.11,2.538]
[1727449108469,14.98,160.17,160.12,3.1211]
[1727449108676,14.98,160.17,160.11,2.538]
[1727449109280,14.98,160.17,160.13,3.121]
[1727449109577,14.98,160.14,160.04,2.5536]
[1727449109778,3.10072301,160.14,160.09,3.1217]
[1727449110080,14.98,160.14,160.09,3.1217]
[1727449110281,18.08322082,160.14,160.04,5.0376]
[1727449110580,18.08322082,160.14,160.09,3.1216]
[1727449110776,18.08322082,160.14,160.05,14.98]
[1727449110977,18.08322082,160.14,160.09,3.1216]
[1727449112786,67.46,160.16,160.04,20.0176]
[1727449112976,70.5755518,160.16,160.04,20.0176]
[1727449113285,14.98,160.15,160.09,3.1217]
[1727449113487,14.98,160.15,160.04,20.0176]
[1727449113879,14.98,160.15,160.05,3.11617641]
[1727449114080,14.98,160.15,160.06,14.98]
[1727449114476,14.98,160.1,159.95,9.3731]
[1727449114683,14.98,160.1,160.02,2.6878]
[1727449114884,14.98,160.13,160.02,2.6878]
[1727449115085,14.98,160.15,160.06,14.98]
[1727449115286,70.61458989,160.16,160.06,14.98]
[1727449115888,70.61458989,160.16,160.11,3.1213]
[1727449116788,70.61458989,160.16,160.12,3.1212]
[1727449117187,70.61458989,160.16,160.11,3.1213]
[1727449117883,14.98,160.15,160.1,3.1215]
[1727449118086,14.98,160.15,160.06,14.98]
[1727449118485,14.98,160.15,160.09,3.1217]
[1727449119797,14.98,160.15,160.06,14.98]
[1727449120190,67.46,160.16,160.08,14.98]
[1727449120597,67.46,160.16,160.12,3.121]
[1727449121201,67.46,160.16,160.11,3.1213]
[1727449121997,14.98,160.15,160.1,3.1215]
[1727449124603,14.98,160.15,160.11,3.1214]
[1727449125003,67.46,160.16,160.07,14.98]
[1727449125204,67.46,160.16,160.08,2.6906]
[1727449126309,67.46,160.16,160.11,3.1213]
[1727449127310,67.46,160.16,160.1,3.1215]
[1727449127501,14.98,160.15,160.1,3.1215]
[1727449127700,14.98,160.15,160.04,2.5152]
[1727449128011,14.98,160.12,160.06,3.1223]
[1727449128309,14.98,160.1,160.03,2.5457]
[1727449128513,14.98,160.1,160.05,3.1224]
[1727449128810,14.98,160.1,160.03,2.5457]
[1727449129013,14.98,160.1,160.05,3.1225]
[1727449131413,14.98,160.1,160.06,3.1222]
[1727449131714,67.46,160.16,159.99,2.6656]
[1727449131715,14.98,160.14,160.04,14.98]
[1727449132018,14.98,160.14,160.1,3.1214]
[1727449132519,82.44,160.16,160.07,14.98]
[1727449133017,82.44,160.16,160.12,3.1211]
[1727449133813,82.44,160.16,160.11,3.1213]
[1727449134009,82.44,160.16,160.07,14.98]
[1727449135315,82.44,160.16,160.11,3.1212]
[1727449135718,14.98,160.14,160.06,2.5145]
[1727449136519,14.98,160.14,159.98,6.2477]
[1727449136718,67.46,160.16,160.01,14.98]
[1727449136719,14.98,160.12,160.01,14.98]
[1727449136916,14.98,160.12,160.05,3.1225]
[1727449137416,14.98,160.1,160.04,3.1227]
[1727449137716,14.98,160.1,159.99,14.98]
[1727449137917,14.98,160.1,160.04,3.1227]
[1727449138113,14.98,160.1,160.01,14.98]
[1727449138314,2.6055,160.11,160.01,14.98]
[1727449138816,14.98,160.14,160.05,14.98]
[1727449140118,14.98,160.14,160.1,3.1216]
[1727449140319,14.98,160.14,160.05,14.98]
[1727449140725,14.98,160.14,160.09,3.1216]
[1727449141219,14.98,160.14,160.05,14.98]
[1727449142210,82.44,160.16,160.07,14.98]
[1727449142413,82.44,160.16,160.1,3.1215]
[1727449143218,67.46,160.16,160.05,6.2451]
[1727449143521,67.46,160.16,160.07,14.98]
[1727449143925,14.98,160.15,160.05,14.98]
[1727449144316,14.98,160.13,160.03,20.3173]
[1727449144719,14.98,160.13,160.1,3.1216]
[1727449145021,14.98,160.15,160.05,14.98]
[1727449145323,67.46,160.16,160.11,3.1212]
[1727449146723,67.46,160.16,160.07,14.98]
[1727449146924,18.15114204,160.17,160.07,14.98]
[1727449147119,18.15114204,160.17,160.1,3.1214]
[1727449150531,14.98,160.15,160.09,3.1217]
[1727449150723,14.98,160.1,160.03,5.3373]
[1727449151023,14.98,160.1,160.03,2.69]
[1727449151427,14.98,160.1,160.0,14.98]
[1727449151627,14.98,160.1,160.05,3.1224]
[1727449151827,17.563,160.1,160.05,3.1224]
[1727449152029,17.563,160.1,160.0,14.98]
[1727449152329,17.563,160.1,160.07,3.122]
[1727449153031,17.563,160.1,160.08,3.1219]
[1727449153425,14.98,160.1,160.02,17.6678]
[1727449153726,14.98,160.1,160.06,3.1223]
[1727449153928,14.98,160.1,160.02,17.6678]
[1727449154831,14.98,160.1,160.06,3.1223]
[1727449155737,14.98,160.1,160.07,3.1222]
[1727449157036,14.98,160.1,160.02,2.6878]
[1727449158435,14.98,160.1,160.06,3.1223]
[1727449160742,14.98,160.1,160.02,2.6878]
[1727449161535,14.98,160.12,160.02,17.6678]
[1727449161746,82.44,160.14,160.04,14.98]
[1727449162441,82.44,160.14,160.09,3.1216]
[1727449165339,82.44,160.14,160.1,3.1216]
[1727449165639,82.44,160.14,160.04,14.98]
[1727449165839,82.44,160.14,160.09,3.1217]
[1727449167143,14.98,160.1,160.03,5.2749]
[1727449167639,14.98,160.1,160.07,3.1221]
[1727449167939,14.98,160.1,160.02,2.6878]
[1727449168129,67.46,160.14,159.98,14.98]
[1727449168130,14.98,160.08,159.98,14.98]
[1727449168333,14.98,160.08,159.97,7.8254]
[1727449168533,14.98,160.08,159.98,14.98]
[1727449168737,14.98,160.08,160.05,3.1224]
[1727449169742,14.98,160.08,160.04,3.1227]
[1727449169939,14.98,160.08,159.97,7.8254]
[1727449169940,14.98,160.08,159.98,14.98]
[1727449170345,14.98,160.08,160.03,3.1229]
[1727449171345,14.98,160.06,159.97,22.8054]
[1727449171542,14.98,160.06,159.97,7.8254]
[1727449171742,3.09777895,160.05,159.97,7.8254]
[1727449171942,14.98,160.06,159.97,7.8254]
[1727449172142,18.08371519,160.06,159.97,7.8254]
[1727449172445,18.08371519,160.06,159.97,22.8054]
[1727449172639,14.98,160.06,159.97,22.8054]
[1727449172846,14.98,160.08,159.99,14.98]
[1727449173039,67.48,160.09,159.99,14.98]
[1727449173345,67.48,160.09,160.04,3.1227]
[1727449174345,14.98,160.08,159.99,14.98]
[1727449174741,14.98,160.08,160.03,3.1228]
[1727449177645,14.98,160.08,159.99,14.98]
[1727449178147,14.98,160.08,160.05,3.1225]
[1727449178344,14.98,160.08,159.99,14.98]
[1727449178742,14.98,160.08,160.04,3.1227]
[1727449181640,14.98,160.08,160.03,3.1229]
[1727449182050,14.98,160.08,159.97,22.8054]
[1727449182051,14.98,160.08,160.04,3.1228]
[1727449182451,14.98,160.08,159.99,14.98]
[1727449182639,14.98,160.08,160.04,3.1226]
[1727449183547,14.98,160.08,159.99,14.98]
[1727449183753,14.98,160.08,159.97,22.8054]
[1727449184050,14.98,160.08,160.03,3.1228]
[1727449188951,14.98,160.08,160.04,3.1227]
[1727449190356,14.98,160.08,160.05,3.1226]
[1727449192356,14.98,160.08,160.04,3.1227]
[1727449193858,14.98,160.08,160.03,3.1229]
[1727449195557,14.98,160.08,160.04,3.1227]
[1727449196760,14.98,160.08,160.03,3.1229]
[1727449198364,9.6,160.05,160.03,3.1229]
[1727449199863,9.6,160.04,159.97,7.8254]
[1727449200057,9.6,160.02,159.97,7.8254]
[1727449200357,9.6,159.98,159.91,6.2505]
[1727449200559,9.6,159.98,159.97,3.124]
[1727449200766,9.6,159.98,159.94,9.6]
[1727449200767,9.6,159.99,159.94,9.6]
[1727449201061,9.6,159.99,159.95,9.6]
[1727449201456,9.6,159.99,159.98,3.1238]
[1727449201654,9.6,159.99,159.92,5.1234]
[1727449201858,3.07223616,160.02,159.97,3.1241]
[1727449201859,9.6,159.98,159.97,3.1241]
[1727449202454,15.01,160.01,159.92,20.1334]
[1727449202658,2.4771,160.05,159.94,15.01]
[1727449203358,18.10913758,160.04,160.0,3.1235]
[1727449203864,18.10913758,160.04,159.99,3.1237]
[1727449204257,15.01,160.02,159.99,3.1237]
[1727449204460,67.5,160.05,159.93,6.2499]
[1727449204763,67.5,160.05,160.0,15.01]
[1727449204964,67.5,160.05,159.98,15.01]
[1727449205271,15.01,160.03,159.93,15.01]
[1727449205460,15.01,160.03,159.99,3.1236]
[1727449206260,67.5,160.05,159.93,17.6437]
[1727449206469,67.5,160.14,160.03,15.01]
[1727449206765,15.01,160.13,160.03,15.01]
[1727449207066,0.92802119,160.12,160.1,3.1216]
[1727449207365,67.5,160.14,160.05,15.01]
[1727449207366,70.56769182,160.14,160.05,15.01]
[1727449207564,70.56769182,160.14,160.09,3.1217]
[1727449208063,15.01,160.13,160.09,3.1217]
[1727449208259,70.56769182,160.14,160.06,15.01]
[1727449208260,67.5,160.14,160.06,15.01]
[1727449208467,67.5,160.14,160.03,10.92654471]
[1727449208468,67.5,160.14,160.05,15.01]
[1727449208660,70.61144456,160.14,160.05,15.01]
[1727449209056,67.5,160.14,160.03,10.92654471]
[1727449209369,70.56420723,160.14,160.04,15.01]
[1727449209767,15.01,160.12,160.03,7.8126]
[1727449209963,15.01,160.12,160.03,10.95427139]
[1727449210565,15.01,160.12,160.07,3.122]
[1727449210760,15.01,160.12,160.03,10.95427139]
[1727449211266,15.01,160.12,160.04,15.01]
[1727449211772,15.01,160.12,160.07,3.122]
[1727449212168,67.5,160.14,160.06,15.01]
[1727449212474,67.5,160.14,160.08,15.01]
[1727449213263,67.5,160.14,160.05,15.01]
[1727449213567,82.51,160.14,160.05,15.01]
[1727449213767,15.01,160.14,160.09,3.1217]
[1727449213970,15.01,160.14,160.03,10.95427139]
[1727449213971,15.01,160.12,160.03,25.96427139]
[1727449214170,15.01,160.12,160.07,3.122]
[1727449214665,15.01,160.12,160.03,7.8126]
[1727449214861,15.01,160.1,160.05,3.1224]
[1727449215065,15.01,160.1,160.03,7.8126]
[1727449215265,15.01,160.1,160.06,3.1222]
[1727449216674,15.01,160.08,160.03,2.6337]
[1727449217074,15.01,160.08,160.03,5.7566]
[1727449217272,15.01,160.04,159.98,2.4869]
[1727449217483,15.01,160.01,159.93,2.5098]
[1727449217776,15.01,160.01,159.93,4.9967]
[1727449218176,15.01,160.01,159.95,3.1244]
[1727449218374,15.01,160.01,159.93,4.9967]
[1727449218575,15.01,160.03,159.93,20.0067]
[1727449218776,15.01,160.03,159.98,3.1238]
[1727449219079,3.0828125,160.02,159.93,20.0067]
[1727449219474,3.0828125,160.02,159.74,8.47468739]
[1727449219475,15.01,160.0,159.81,6.2546]
[1727449219780,15.01,159.95,159.85,5.0571]
[1727449220675,15.01,159.95,159.91,3.1252]
[1727449221275,67.48,160.07,159.92,15.01]
[1727449221471,0.92860655,160.06,159.97,15.01]
[1727449221781,0.92860655,160.06,159.99,15.01]
[1727449221975,0.92860655,160.06,160.01,15.01]
[1727449222174,67.48,160.07,160.01,15.01]
[1727449222377,67.48,160.07,160.0,23.98]
[1727449222581,67.48,160.07,160.04,3.1226]
[1727449223376,67.48,160.07,160.04,3.1227]
[1727449224879,3.06117344,160.08,160.04,3.1227]
[1727449225080,67.5,160.1,160.04,3.1227]
[1727449225382,0.92810772,160.09,160.03,3.1229]
[1727449225571,3.06629978,160.08,160.03,3.1229]
[1727449225777,3.06629978,160.08,159.99,2.584]
[1727449225976,67.5,160.1,159.99,2.584]
[1727449226178,0.92814172,160.09,159.99,2.584]
[1727449226487,3.14815942,160.08,160.02,3.123]
[1727449226885,67.5,160.1,160.02,3.123]
[1727449227086,0.9281442,160.09,160.02,3.123]
[1727449227386,3.10754204,160.08,159.99,2.584]
[1727449227883,67.5,160.1,160.02,3.123]
[1727449228085,0.92817964,160.09,159.99,2.584]
[1727449228292,23.98,160.08,160.01,3.1232]
[1727449228586,23.98,160.08,159.99,2.584]
[1727449228784,23.98,160.08,159.96,23.98]
[1727449228785,0.92824538,160.07,159.96,23.98]
[1727449228983,4.03172568,160.07,159.96,23.98]
[1727449229291,23.98,160.08,159.96,23.98]
[1727449229491,0.92827013,160.06,160.0,3.1234]
[1727449229692,67.5,160.07,160.0,3.1234]
[1727449229987,0.92827075,160.06,160.0,3.1234]
[1727449230187,24.90827075,160.06,159.94,26.6513]
[1727449230387,0.92836429,160.05,159.94,26.6513]
[1727449230585,4.04871643,160.05,159.94,26.6513]
[1727449230782,23.98,160.03,159.94,2.6713]
[1727449231093,23.98,160.03,159.93,5.0571]
[1727449232285,75.54160965,160.07,159.93,2.5634]
[1727449232286,23.98,160.0,159.93,2.5634]
[1727449232488,23.98,159.97,159.91,3.1252]
[1727449232791,27.11902636,160.0,159.89,5.74720947]
[1727449233291,27.11902636,160.0,159.92,3.125]
[1727449233491,23.98,159.97,159.91,3.1252]
[1727449233883,23.98,159.97,159.89,2.6982]
[1727449234083,23.98,159.97,159.9,3.1255]
[1727449234481,23.98,159.95,159.86,3.0608867]
[1727449234686,23.98,159.95,159.82,23.98]
[1727449234887,23.98,159.95,159.82,27.0846355]
[1727449235089,23.98,159.92,159.85,3.1263]
[1727449235391,23.98,159.92,159.81,7.767]
[1727449235591,3.47877268,159.91,159.81,7.767]
[1727449235788,2.5494,159.91,159.81,7.767]
[1727449236293,2.5494,159.91,159.84,3.1266]
[1727449236487,2.5494,159.91,159.81,7.767]
[1727449236888,2.5494,159.91,159.85,3.1263]
[1727449237192,2.5494,159.91,159.81,7.767]
[1727449237494,3.14278674,159.95,159.83,23.98]
[1727449237695,67.52,159.96,159.83,23.98]
[1727449237889,0.92908095,159.95,159.83,23.98]
[1727449238192,3.08086465,159.94,159.83,23.98]
[1727449238585,23.98,159.95,159.83,23.98]
[1727449238796,23.98,159.92,159.81,31.747]
[1727449239291,0.92936717,159.91,159.81,31.747]
[1727449239487,23.98,159.9,159.84,3.1267]
[1727449239685,23.98,159.9,159.81,7.767]
[1727449239881,23.98,159.9,159.82,3.1269]
[1727449240090,23.98,159.87,159.81,2.6645]
[1727449240988,3.18281997,159.86,159.81,2.6645]
[1727449241894,23.98,159.87,159.82,3.1269]
[1727449242088,3.11049405,159.86,159.81,2.6645]
[1727449242494,3.11049405,159.86,159.81,5.7916]
[1727449242793,3.11049405,159.86,159.76,2.5373]
[1727449242993,3.05574835,159.85,159.8,3.1274]
[1727449243295,23.98,159.87,159.8,3.1274]
[1727449243697,27.0689086,159.87,159.8,3.1274]
[1727449243901,27.0689086,159.87,159.79,3.1276]
[1727449244101,27.0689086,159.87,159.76,2.5373]
[1727449244307,94.6289086,159.87,159.79,3.1275]
[1727449244800,94.6289086,159.87,159.76,2.5373]
[1727449245006,23.98,159.85,159.76,2.5373]
[1727449245907,23.98,159.85,159.78,3.1278]
[1727449246908,27.0619794,159.85,159.78,3.1278]
[1727449247399,0.93004527,159.84,159.77,3.128]
[1727449247600,23.98,159.8,159.72,2.7144]
[1727449247799,27.07151459,159.8,159.73,3.1286]
[1727449248009,27.07151459,159.8,159.67,7.8818]
[1727449248309,27.07151459,159.8,159.67,10.96705519]
[1727449249207,27.07151459,159.8,159.71,3.1291]
[1727449249609,23.98,159.77,159.71,3.1291]
[1727449250008,27.1766724,159.77,159.72,3.129]
[1727449250207,23.98,159.79,159.72,3.129]
[1727449250409,27.17855022,159.79,159.72,3.129]
[1727449250909,27.17855022,159.79,159.67,5.2559]
[1727449251101,23.98,159.81,159.69,23.98]
[1727449251310,27.05632375,159.81,159.77,3.128]
[1727449251502,116.09147366,159.86,159.74,3.11107209]
[1727449251708,116.09147366,159.86,159.8,3.1273]
[1727449251909,116.09147366,159.86,159.75,5.2126]
[1727449252103,96.4336,159.9,159.78,23.98]
[1727449252315,96.4336,159.9,159.83,3.1267]
[1727449252512,96.4336,159.9,159.78,23.98]
[1727449252712,96.4336,159.9,159.75,31.7554]
[1727449252713,23.98,159.88,159.75,31.7554]
[1727449252914,23.98,159.88,159.8,3.1273]
[1727449254404,23.98,159.85,159.8,3.1273]
[1727449254603,3.15562699,159.84,159.79,3.1276]
[1727449254806,23.98,159.85,159.75,7.7754]
[1727449255212,3.09899154,159.84,159.75,7.7754]
[1727449255813,23.98,159.85,159.75,7.7754]
[1727449256312,23.98,159.83,159.78,3.1277]
[1727449256816,23.98,159.83,159.76,3.1282]
[1727449257115,23.98,159.83,159.69,83.51329199]
[1727449257116,23.98,159.81,159.7,5.1459]
[1727449257312,23.98,159.81,159.75,3.1284]
[1727449257711,23.98,159.81,159.7,7.6266]
[1727449257918,2.48,159.82,159.71,30.2384]
[1727449258508,2.48,159.82,159.78,3.1277]
[1727449259112,70.64989156,159.85,159.74,23.98]
[1727449259313,70.64989156,159.85,159.77,23.98]
[1727449259517,67.58,159.85,159.8,23.98]
[1727449259715,67.58,159.85,159.84,3.1267]
[1727449260718,73.18998901,159.93,159.82,23.98]
[1727449261017,73.18998901,159.93,159.85,23.98]
[1727449261018,70.0822,159.93,159.85,23.98]
[1727449261415,23.98,159.92,159.8,23.98]
[1727449261611,23.98,159.9,159.78,7.6469]
[1727449261825,23.98,159.88,159.78,7.6469]
[1727449262024,27.10687844,159.88,159.78,7.6469]
[1727449262921,27.10687844,159.88,159.81,3.1271]
[1727449263117,27.10687844,159.88,159.78,7.6469]
[1727449263327,23.98,159.85,159.74,23.98]
[1727449263518,23.98,159.85,159.73,2.4341]
[1727449263720,27.06447821,159.85,159.74,3.08447821]
[1727449263919,2.2877,159.87,159.74,23.98]
[1727449264220,2.4341,159.92,159.77,23.98]
[1727449264419,28.7018,159.92,159.82,3.127]
[1727449264623,23.98,159.89,159.74,27.12049135]
[1727449264820,23.98,159.86,159.74,27.12049135]
[1727449265120,23.98,159.84,159.73,2.4341]
[1727449265326,27.12080428,159.84,159.73,2.4341]
[1727449266728,27.12080428,159.84,159.77,3.1279]
[1727449267421,23.98,159.81,159.75,3.1284]
[1727449267626,23.98,159.81,159.73,2.4341]
[1727449267827,23.98,159.81,159.75,3.1283]
[1727449268031,23.98,159.79,159.58,283.3949]
[1727449268327,23.98,159.79,159.72,3.1289]
[1727449268629,23.98,159.79,159.67,4.9455]
[1727449269023,23.98,159.79,159.73,3.1287]
[1727449269321,23.98,159.82,159.68,23.98]
[1727449269716,23.98,159.82,159.76,3.1281]
[1727449269922,23.98,159.82,159.68,23.98]
[1727449270732,23.98,159.79,159.67,4.9455]
[1727449271229,28.7545,159.83,159.7,23.98]
[1727449272131,23.98,159.8,159.67,28.9255]
[1727449273121,23.98,159.8,159.72,3.1289]
[1727449273321,23.98,159.8,159.67,28.9255]
[1727449275629,23.98,159.8,159.67,4.9455]
[1727449276025,23.98,159.77,159.67,4.9455]
[1727449276223,23.98,159.75,159.67,2.4678]
[1727449276427,27.12863787,159.75,159.67,2.4678]
[1727449276931,70.2887,159.76,159.67,2.4678]
[1727449277123,70.2887,159.76,159.68,23.98]
[1727449277124,67.62,159.76,159.68,23.98]
[1727449277326,67.62,159.76,159.67,2.4678]
[1727449277327,67.62,159.76,159.7,23.98]
[1727449277632,67.62,159.76,159.75,3.1284]
[1727449278225,2.5829,159.82,159.73,23.98]
[1727449278422,3.14080428,159.84,159.73,23.98]
[1727449278628,67.62,159.87,159.82,3.127]
[1727449278827,67.62,159.87,159.78,23.98]
[1727449279233,67.62,159.87,159.8,23.98]
[1727449279437,67.62,159.87,159.81,2.4767]
[1727449279643,92.06564047,159.94,159.81,2.4767]
[1727449279933,23.98,159.92,159.82,2.4379]
[1727449280131,23.98,159.88,159.79,2.5851]
[1727449280437,27.0756384,159.88,159.83,3.1268]
[1727449281028,27.0756384,159.88,159.79,2.5851]
[1727449282032,23.98,159.85,159.77,2.4408]
[1727449282434,23.98,159.85,159.78,3.1278]
[1727449282732,7.5053,159.87,159.74,2.4887]
[1727449282733,23.98,159.83,159.74,2.4887]
[1727449283323,23.98,159.83,159.77,3.1279]
[1727449283523,23.98,159.83,159.74,2.4887]
[1727449283732,23.98,159.83,159.78,3.1277]
[1727449284734,91.58,159.85,159.74,2.4887]
[1727449286135,91.58,159.85,159.79,3.1275]
[1727449288530,91.58,159.85,159.73,23.98]
[1727449288931,91.58,159.85,159.8,3.1273]
[1727449289136,91.58,159.85,159.73,23.98]
[1727449290133,67.6,159.85,159.73,23.98]
[1727449290336,67.6,159.85,159.79,23.98]
[1727449290639,67.6,159.85,159.84,3.1267]
[1727449291434,91.58,159.92,159.85,3.1264]
[1727449291633,91.58,159.92,159.8,4.916]
[1727449293037,30.9835,159.95,159.8,2.4375]
[1727449293237,23.98,159.9,159.8,2.4375]
[1727449293940,23.98,159.9,159.83,3.1267]
[1727449294838,0.92962642,159.89,159.83,3.1267]
[1727449296236,23.98,159.85,159.7,9.42881189]
[1727449296535,23.98,159.85,159.72,23.98]
[1727449296741,23.98,159.85,159.77,3.1279]
[1727449297036,23.98,159.85,159.72,23.98]
[1727449297235,23.98,159.85,159.78,3.1277]
[1727449297840,23.98,159.85,159.72,23.98]
[1727449298940,67.58,159.86,159.74,23.98]
[1727449299742,67.58,159.86,159.81,3.1273]
[1727449300332,67.58,159.86,159.82,3.127]
[1727449300844,67.58,159.86,159.74,23.98]
[1727449301039,23.98,159.9,159.77,23.98]
[1727449301244,23.98,159.93,159.8,23.98]
[1727449301437,0.92949976,159.92,159.81,3.10626651]
[1727449301937,0.92949976,159.92,159.82,23.98]
[1727449302243,67.58,159.94,159.83,3.1259799]
[1727449302441,0.92938371,159.93,159.83,3.1259799]
[1727449303445,0.92938371,159.93,159.82,23.98]
[1727449303642,0.92938371,159.93,159.87,3.126]
[1727449304437,0.92938371,159.93,159.89,3.1256]
[1727449304737,24.90938371,159.93,159.82,23.98]
[1727449304944,23.98,159.9,159.78,7.6717]
[1727449305147,23.98,159.88,159.78,10.77359655]
[1727449305745,23.98,159.84,159.71,23.98]
[1727449306040,23.98,159.84,159.73,2.4182]
[1727449306240,23.98,159.84,159.74,3.1285]
[1727449306441,67.58,159.83,159.74,3.1285]
[1727449307050,67.58,159.83,159.75,3.1284]
[1727449307345,67.58,159.83,159.73,2.4182]
[1727449308144,67.58,159.83,159.75,23.98]
[1727449310048,67.58,159.83,159.73,2.4182]
[1727449312049,67.58,159.83,159.78,3.1278]
[1727449312244,23.98,159.85,159.78,3.1278]
[1727449312645,23.98,159.85,159.73,2.4182]
[1727449313349,23.98,159.85,159.79,3.1275]
[1727449314349,23.98,159.85,159.8,3.1274]
[1727449314546,23.98,159.85,159.73,2.4182]
[1727449314946,23.98,159.85,159.79,3.1276]
[1727449315150,23.98,159.85,159.73,2.4182]
[1727449315747,23.98,159.85,159.78,3.1277]
[1727449316253,23.98,159.85,159.73,2.4182]
[1727449317653,23.98,159.85,159.77,3.1279]
[1727449318255,23.98,159.85,159.76,3.1282]
[1727449318554,23.98,159.85,159.73,2.4182]
[1727449319745,69.9458,159.87,159.75,23.98]
[1727449320247,67.58,159.87,159.75,23.98]
[1727449320550,67.58,159.87,159.73,2.4182]
[1727449320551,67.58,159.87,159.85,3.1265]
[1727449320745,67.58,159.87,159.82,3.14006089]
[1727449320951,67.58,159.87,159.77,23.98]
[1727449321650,67.58,159.87,159.85,3.1264]
[1727449321845,23.98,159.9,159.82,3.05554994]
[1727449322051,27.16887499,159.92,159.77,23.98]
[1727449322052,23.98,159.92,159.8,23.98]
[1727449322356,23.98,159.92,159.81,7.4225]
[1727449322957,23.98,159.92,159.85,3.1263]
[1727449323355,23.98,159.92,159.81,7.4225]
[1727449323857,23.98,159.92,159.86,3.1263]
[1727449324056,23.98,159.92,159.81,7.4225]
[1727449324248,23.98,159.92,159.84,3.1266]
[1727449324455,23.98,159.92,159.81,7.4225]
[1727449324649,23.98,159.89,159.81,7.4225]